fUSD/lending_fUSD_20260602
["ID","MTS","AMOUNT","RATE_DAILY","PERIOD"]
[423737229,1780351841000,-1720.49,0.0001468,2]
[423737227,1780351841000,-500.0,0.0001468,2]
[423737230,1780351841000,-1720.49,0.0001468,2]
[423737233,1780351841000,-500.0,0.0001468,2]
[423737232,1780351841000,-500.0,0.0001468,2]
[423737203,1780351841000,-3837.0855357,0.00014673,2]
[423737216,1780351841000,-500.0,0.0001468,2]
[423737206,1780351841000,-151.0,0.00014673,2]
[423737199,1780351841000,-300.0,0.00014672,2]
[423737200,1780351841000,-9720.1970269,0.00014673,2]
[423737174,1780351841000,-200.0,0.00014581,2]
[423737175,1780351841000,-667.32084277,0.00014583,2]
[423737178,1780351841000,-215.65015035,0.00014603,2]
[423737183,1780351841000,-1720.49,0.00014616,2]
[423737179,1780351841000,-500.0,0.00014616,2]
[423737177,1780351841000,-3675.15094387,0.00014592,2]
[423737184,1780351841000,-500.0,0.00014616,2]
[423737185,1780351841000,-500.0,0.00014616,2]
[423737180,1780351841000,-591.18,0.00014616,2]
[423737186,1780351841000,-500.0,0.00014616,2]
[423737182,1780351841000,-500.0,0.00014616,2]
[423737181,1780351841000,-611.76,0.00014616,2]
[423737176,1780351841000,-11382.25329238,0.00014583,2]
[423737202,1780351841000,-187975.6692859,0.00014673,2]
[423737187,1780351841000,-15920.42582783,0.00014618,2]
[423737188,1780351841000,-204.48,0.0001462,2]
[423737190,1780351841000,-2490.0,0.0001462,5]
[423737191,1780351841000,-2202.0,0.0001462,5]
[423737192,1780351841000,-150.0,0.00014622,2]
[423737194,1780351841000,-150.0,0.00014662,2]
[423737195,1780351841000,-202.90813605,0.00014672,2]
[423737193,1780351841000,-2474.24367457,0.00014628,2]
[423737197,1780351841000,-645.91,0.00014672,2]
[423737196,1780351841000,-314.99174282,0.00014672,2]
[423737198,1780351841000,-300.0,0.00014672,2]
[423737211,1780351841000,-151.0,0.00014673,2]
[423737212,1780351841000,-10000.0,0.00014674,2]
[423737201,1780351841000,-146515.0232408,0.00014673,2]
[423737189,1780351841000,-3319.773,0.0001462,2]
[423737237,1780351841000,-570.72,0.0001468,2]
[423737260,1780351841000,-151.0,0.00014696,2]
[423737236,1780351841000,-500.0,0.0001468,2]
[423737272,1780351841000,-900.0,0.00014726,2]
[423737273,1780351841000,-624.0744058,0.00014728,2]
[423737274,1780351841000,-395.0,0.00014729,2]
[423737284,1780351841000,-391.0,0.00014757,2]
[423737287,1780351841000,-151.0,0.00014757,2]
[423737286,1780351841000,-153.0,0.00014757,2]
[423737275,1780351841000,-4103.67088923,0.00014739,2]
[423737277,1780351841000,-2000.0,0.00014747,2]
[423737281,1780351841000,-2000.0,0.00014747,2]
[423737279,1780351841000,-2000.0,0.00014747,2]
[423737285,1780351841000,-153.0,0.00014757,2]
[423737278,1780351841000,-2000.0,0.00014747,2]
[423737282,1780351841000,-2000.0,0.00014747,2]
[423737268,1780351841000,-151.0,0.00014703,2]
[423737280,1780351841000,-2000.0,0.00014747,2]
[423737276,1780351841000,-150.0,0.00014743,2]
[423737288,1780351841000,-165.22995503,0.00014757,2]
[423737290,1780351841000,-15920.42582783,0.00014759,2]
[423737289,1780351841000,-392.0,0.00014758,2]
[423737296,1780351841000,-151.0,0.00014774,2]
[423737297,1780351841000,-150.0,0.00014784,2]
[423737298,1780351841000,-150.0,0.00014786,2]
[423737292,1780351841000,-389.0,0.00014764,2]
[423737293,1780351841000,-391.0,0.00014771,2]
[423737291,1780351841000,-151.0,0.0001476,2]
[423737295,1780351841000,-151.0,0.00014774,2]
[423737294,1780351841000,-151.0,0.00014774,2]
[423737235,1780351841000,-500.0,0.0001468,2]
[423737283,1780351841000,-391.0,0.0001475,2]
[423737269,1780351841000,-403.77,0.00014715,2]
[423737267,1780351841000,-150.0,0.00014703,2]
[423737271,1780351841000,-2474.24367457,0.00014719,2]
[423737239,1780351841000,-645.91,0.0001468,2]
[423737249,1780351841000,-151.0,0.00014681,2]
[423737240,1780351841000,-500.0,0.0001468,2]
[423737242,1780351841000,-500.0,0.0001468,2]
[423737241,1780351841000,-500.0,0.0001468,2]
[423737244,1780351841000,-500.0,0.0001468,2]
[423737243,1780351841000,-500.0,0.0001468,2]
[423737246,1780351841000,-872.74,0.0001468,2]
[423737245,1780351841000,-872.74,0.0001468,2]
[423737247,1780351841000,-1713.2823,0.00014681,2]
[423737248,1780351841000,-151.0,0.00014681,2]
[423737250,1780351841000,-151.0,0.00014681,2]
[423737253,1780351841000,-10000.0,0.00014684,2]
[423737251,1780351841000,-151.0,0.00014681,2]
[423737238,1780351841000,-570.72,0.0001468,2]
[423737254,1780351841000,-15920.42582783,0.00014688,2]
[423737252,1780351841000,-151.0,0.00014681,2]
[423737265,1780351841000,-309.0,0.000147,2]
[423737270,1780351841000,-2000.0,0.00014718,2]
[423737263,1780351841000,-19917.15391601,0.000147,2]
[423737266,1780351841000,-1000.0,0.000147,2]
[423737261,1780351841000,-151.0,0.00014696,2]
[423737264,1780351841000,-200.0,0.000147,2]
[423737256,1780351841000,-1546.0,0.00014696,2]
[423737255,1780351841000,-667.32084277,0.00014688,2]
[423737257,1780351841000,-1546.0,0.00014696,2]
[423737259,1780351841000,-151.0,0.00014696,2]
[423737258,1780351841000,-151.0,0.00014696,2]
[423737262,1780351841000,-2400.0,0.000147,5]
[423737338,1780351842000,-1720.49,0.00014855,2]
[423737336,1780351842000,-591.18,0.00014855,2]
[423737337,1780351842000,-611.76,0.00014855,2]
[423737339,1780351842000,-500.0,0.00014855,2]
[423737331,1780351842000,-350.0,0.00014838,2]
[423737333,1780351842000,-1337.800247,0.0001485,2]
[423737329,1780351842000,-872.74,0.00014831,2]
[423737327,1780351842000,-570.72,0.00014831,2]
[423737328,1780351842000,-500.0,0.00014831,2]
[423737342,1780351842000,-25000.0,0.00014865,3]
[423737326,1780351842000,-15920.42582783,0.00014829,2]
[423737330,1780351842000,-433.78966585,0.00014836,2]
[423737345,1780351842000,-551.16841754,0.00014873,2]
[423737358,1780351842000,-151.0,0.00014891,2]
[423737344,1780351842000,-350.0,0.00014872,2]
[423737343,1780351842000,-392.0,0.0001487,2]
[423737347,1780351842000,-391.0,0.00014879,2]
[423737346,1780351842000,-25000.0,0.00014874,3]
[423737349,1780351842000,-391.0,0.0001488,2]
[423737357,1780351842000,-300.0,0.0001489,2]
[423737359,1780351842000,-151.0,0.00014891,2]
[423737348,1780351842000,-163.0,0.0001488,2]
[423737360,1780351842000,-151.0,0.00014891,2]
[423737353,1780351842000,-25000.0,0.00014882,3]
[423737351,1780351842000,-151.0,0.00014882,2]
[423737334,1780351842000,-350.0,0.00014851,2]
[423737340,1780351842000,-500.0,0.00014855,2]
[423737335,1780351842000,-500.0,0.00014855,2]
[423737314,1780351842000,-10000.0,0.00014791,2]
[423737324,1780351842000,-150.0,0.00014824,2]
[423737299,1780351842000,-170.0,0.00014786,2]
[423737301,1780351842000,-150.391,0.00014786,2]
[423737300,1780351842000,-150.14,0.00014786,2]
[423737309,1780351842000,-1357.0,0.00014786,2]
[423737302,1780351842000,-195.019,0.00014786,2]
[423737310,1780351842000,-1280.632,0.00014786,2]
[423737311,1780351842000,-391.0,0.0001479,2]
[423737303,1780351842000,-250.0,0.00014786,2]
[423737308,1780351842000,-165.205,0.00014786,2]
[423737305,1780351842000,-151.0,0.00014786,2]
[423737307,1780351842000,-929.0,0.00014786,2]
[423737304,1780351842000,-245.676,0.00014786,2]
[423737332,1780351842000,-392.0,0.0001485,2]
[423737306,1780351842000,-3567.942,0.00014786,2]
[423737312,1780351842000,-645.91,0.0001479,2]
[423737315,1780351842000,-500.0,0.00014793,2]
[423737316,1780351842000,-667.32084277,0.00014794,2]
[423737318,1780351842000,-388.0,0.00014806,2]
[423737321,1780351842000,-391.0,0.00014812,2]
[423737313,1780351842000,-500.0,0.00014791,2]
[423737319,1780351842000,-2474.24367457,0.00014809,2]
[423737323,1780351842000,-255.0,0.00014822,2]
[423737320,1780351842000,-392.0,0.00014811,2]
[423737322,1780351842000,-389.0,0.00014821,2]
[423737317,1780351842000,-1513.1356059,0.000148,2]
[423737325,1780351842000,-392.0,0.00014827,2]
[423737350,1780351842000,-151.0,0.00014882,2]
[423737352,1780351842000,-25000.0,0.00014882,3]
[423737341,1780351842000,-150.0,0.00014865,2]
[423737355,1780351842000,-56322.821754,0.0001489,2]
[423737396,1780351842000,-76732.9506639,0.00014919,2]
[423737386,1780351842000,-150.0,0.00014905,2]
[423737390,1780351842000,-151.0,0.00014918,2]
[423737391,1780351842000,-300.0,0.00014918,2]
[423737392,1780351842000,-2168.8691192,0.00014919,2]
[423737389,1780351842000,-872.74,0.00014918,2]
[423737394,1780351842000,-41943.0411917,0.00014919,2]
[423737398,1780351842000,-591.18,0.0001492,2]
[423737407,1780351842000,-350.0,0.00014925,2]
[423737408,1780351842000,-391.0,0.00014929,2]
[423737400,1780351842000,-1720.49,0.0001492,2]
[423737406,1780351842000,-389.0,0.00014925,2]
[423737401,1780351842000,-500.0,0.0001492,2]
[423737405,1780351842000,-240.984577,0.00014921,2]
[423737402,1780351842000,-151.0,0.0001492,2]
[423737403,1780351842000,-151.0,0.0001492,2]
[423737404,1780351842000,-500.0,0.0001492,2]
[423737409,1780351842000,-250.0,0.00014935,2]
[423737412,1780351842000,-389.0,0.00014952,2]
[423737410,1780351842000,-389.0,0.0001494,2]
[423737411,1780351842000,-150.0,0.00014946,2]
[423737413,1780351842000,-693.42312846,0.00014959,7]
[423737414,1780351842000,-391.0,0.0001496,2]
[423737415,1780351842000,-12567.3202379,0.00014968,2]
[423737416,1780351842000,-500.0,0.0001497,2]
[423737354,1780351842000,-151.0,0.00014888,2]
[423737417,1780351842000,-500.0,0.0001497,2]
[423737393,1780351842000,-32691.9205998,0.00014919,2]
[423737395,1780351842000,-856.1695101,0.00014919,2]
[423737399,1780351842000,-611.76,0.0001492,2]
[423737397,1780351842000,-500.0,0.0001492,2]
[423737356,1780351842000,-300.0,0.0001489,2]
[423737388,1780351842000,-500.0,0.00014918,2]
[423737364,1780351842000,-25000.0,0.00014891,3]
[423737363,1780351842000,-25000.0,0.00014891,3]
[423737366,1780351842000,-300.0,0.00014899,2]
[423737370,1780351842000,-400.0,0.000149,3]
[423737368,1780351842000,-645.91,0.00014899,2]
[423737362,1780351842000,-25000.0,0.00014891,3]
[423737365,1780351842000,-25000.0,0.00014891,3]
[423737367,1780351842000,-438.19650333,0.00014899,2]
[423737369,1780351842000,-600.0,0.000149,2]
[423737371,1780351842000,-5685.54957624,0.000149,3]
[423737372,1780351842000,-10691.16505716,0.000149,2]
[423737374,1780351842000,-25000.0,0.000149,3]
[423737361,1780351842000,-151.0,0.00014891,2]
[423737373,1780351842000,-340.63,0.000149,2]
[423737380,1780351842000,-2474.24367457,0.000149,2]
[423737381,1780351842000,-25000.0,0.000149,3]
[423737383,1780351842000,-11382.25329238,0.000149,2]
[423737375,1780351842000,-25000.0,0.000149,3]
[423737379,1780351842000,-667.32084277,0.000149,2]
[423737382,1780351842000,-4103.67088923,0.000149,2]
[423737377,1780351842000,-25000.0,0.000149,3]
[423737378,1780351842000,-15920.42582783,0.000149,2]
[423737385,1780351842000,-151.0,0.000149,2]
[423737387,1780351842000,-570.72,0.00014918,2]
[423737384,1780351842000,-151.0,0.000149,2]
[423737376,1780351842000,-1480.05,0.000149,2]
[423737448,1780351843000,-389.0,0.00014988,2]
[423737467,1780351843000,-591.18,0.00014999,2]
[423737450,1780351843000,-15000.0,0.00014991,2]
[423737452,1780351843000,-151.0,0.00014997,2]
[423737453,1780351843000,-500.0,0.00014998,2]
[423737449,1780351843000,-269.12789941,0.0001499,2]
[423737454,1780351843000,-591.18,0.00014998,2]
[423737455,1780351843000,-611.76,0.00014998,2]
[423737468,1780351843000,-591.18,0.00014999,2]
[423737458,1780351843000,-645.91,0.00014998,2]
[423737466,1780351843000,-591.18,0.00014999,2]
[423737460,1780351843000,-300.0,0.00014998,2]
[423737451,1780351843000,-151.0,0.00014997,2]
[423737464,1780351843000,-591.18,0.00014999,2]
[423737457,1780351843000,-500.0,0.00014998,2]
[423737463,1780351843000,-581.17453971,0.00014999,2]
[423737462,1780351843000,-3032.18967907,0.00014999,2]
[423737459,1780351843000,-500.0,0.00014998,2]
[423737477,1780351843000,-591.18,0.00014999,2]
[423737465,1780351843000,-591.18,0.00014999,2]
[423737470,1780351843000,-591.18,0.00014999,2]
[423737481,1780351843000,-611.76,0.00014999,2]
[423737482,1780351843000,-611.76,0.00014999,2]
[423737480,1780351843000,-591.34034371,0.00014999,2]
[423737469,1780351843000,-591.18,0.00014999,2]
[423737472,1780351843000,-591.18,0.00014999,2]
[423737447,1780351843000,-151.33633881,0.00014986,2]
[423737461,1780351843000,-1146.38298594,0.00014999,5]
[423737419,1780351843000,-500.0,0.0001497,2]
[423737418,1780351843000,-500.0,0.0001497,2]
[423737445,1780351843000,-150.0,0.00014986,2]
[423737471,1780351843000,-591.18,0.00014999,2]
[423737420,1780351843000,-500.0,0.0001497,2]
[423737422,1780351843000,-500.0,0.0001497,2]
[423737432,1780351843000,-500.0,0.0001497,2]
[423737421,1780351843000,-500.0,0.0001497,2]
[423737425,1780351843000,-1000.0,0.0001497,2]
[423737428,1780351843000,-1000.0,0.0001497,2]
[423737423,1780351843000,-1000.0,0.0001497,2]
[423737424,1780351843000,-1000.0,0.0001497,2]
[423737426,1780351843000,-1000.0,0.0001497,2]
[423737427,1780351843000,-1000.0,0.0001497,2]
[423737429,1780351843000,-1000.0,0.0001497,2]
[423737430,1780351843000,-1000.0,0.0001497,2]
[423737431,1780351843000,-1000.0,0.0001497,2]
[423737433,1780351843000,-500.0,0.0001497,2]
[423737437,1780351843000,-483.9401139,0.00014974,2]
[423737435,1780351843000,-500.0,0.00014974,2]
[423737436,1780351843000,-872.74,0.00014974,2]
[423737438,1780351843000,-7294.553479,0.00014974,2]
[423737442,1780351843000,-350.0,0.00014983,2]
[423737434,1780351843000,-570.72,0.00014974,2]
[423737439,1780351843000,-9358.7574982,0.00014974,2]
[423737441,1780351843000,-17121.4355703,0.00014974,2]
[423737443,1780351843000,-210.96,0.00014985,2]
[423737440,1780351843000,-191.0372399,0.00014974,2]
[423737444,1780351843000,-150.0,0.00014986,2]
[423737446,1780351843000,-294.32751149,0.00014986,2]
[423737456,1780351843000,-1720.49,0.00014998,2]
[423737473,1780351843000,-591.18,0.00014999,2]
[423737508,1780351843000,-1720.49,0.00014999,2]
[423737479,1780351843000,-591.18,0.00014999,2]
[423737511,1780351843000,-1720.49,0.00014999,2]
[423737512,1780351843000,-1720.49,0.00014999,2]
[423737515,1780351843000,-500.0,0.00014999,2]
[423737513,1780351843000,-1720.49,0.00014999,2]
[423737514,1780351843000,-1720.6722324,0.00014999,2]
[423737516,1780351843000,-500.0,0.00014999,2]
[423737520,1780351843000,-570.72,0.00014999,2]
[423737522,1780351843000,-570.72,0.00014999,2]
[423737521,1780351843000,-570.72,0.00014999,2]
[423737530,1780351843000,-570.72,0.00014999,2]
[423737519,1780351843000,-179.064744,0.00014999,2]
[423737531,1780351843000,-570.87889731,0.00014999,2]
[423737525,1780351843000,-570.72,0.00014999,2]
[423737523,1780351843000,-570.72,0.00014999,2]
[423737529,1780351843000,-570.72,0.00014999,2]
[423737524,1780351843000,-570.72,0.00014999,2]
[423737528,1780351843000,-570.72,0.00014999,2]
[423737527,1780351843000,-570.72,0.00014999,2]
[423737534,1780351843000,-645.91,0.00014999,2]
[423737532,1780351843000,-645.91,0.00014999,2]
[423737537,1780351843000,-645.91,0.00014999,2]
[423737536,1780351843000,-645.91,0.00014999,2]
[423737535,1780351843000,-645.91,0.00014999,2]
[423737533,1780351843000,-645.91,0.00014999,2]
[423737539,1780351843000,-645.91,0.00014999,2]
[423737538,1780351843000,-645.91,0.00014999,2]
[423737476,1780351843000,-591.18,0.00014999,2]
[423737510,1780351843000,-1720.49,0.00014999,2]
[423737518,1780351843000,-151.0,0.00014999,2]
[423737526,1780351843000,-570.72,0.00014999,2]
[423737509,1780351843000,-1720.49,0.00014999,2]
[423737517,1780351843000,-625.66616302,0.00014999,2]
[423737474,1780351843000,-591.18,0.00014999,2]
[423737478,1780351843000,-591.18,0.00014999,2]
[423737483,1780351843000,-611.76,0.00014999,2]
[423737485,1780351843000,-611.76,0.00014999,2]
[423737486,1780351843000,-611.76,0.00014999,2]
[423737489,1780351843000,-611.76,0.00014999,2]
[423737490,1780351843000,-611.76,0.00014999,2]
[423737484,1780351843000,-611.76,0.00014999,2]
[423737488,1780351843000,-611.76,0.00014999,2]
[423737487,1780351843000,-611.76,0.00014999,2]
[423737493,1780351843000,-611.76,0.00014999,2]
[423737492,1780351843000,-611.76,0.00014999,2]
[423737491,1780351843000,-611.76,0.00014999,2]
[423737498,1780351843000,-1720.49,0.00014999,2]
[423737494,1780351843000,-611.76,0.00014999,2]
[423737506,1780351843000,-1720.49,0.00014999,2]
[423737496,1780351843000,-611.76,0.00014999,2]
[423737502,1780351843000,-1720.49,0.00014999,2]
[423737505,1780351843000,-1720.49,0.00014999,2]
[423737500,1780351843000,-1720.49,0.00014999,2]
[423737507,1780351843000,-1720.49,0.00014999,2]
[423737475,1780351843000,-591.18,0.00014999,2]
[423737503,1780351843000,-1720.49,0.00014999,2]
[423737504,1780351843000,-1720.49,0.00014999,2]
[423737499,1780351843000,-1720.49,0.00014999,2]
[423737497,1780351843000,-611.98637559,0.00014999,2]
[423737495,1780351843000,-611.76,0.00014999,2]
[423737501,1780351843000,-1720.49,0.00014999,2]
[423737550,1780351844000,-500.0,0.00014999,2]
[423737551,1780351844000,-500.0,0.00014999,2]
[423737549,1780351844000,-500.0,0.00014999,2]
[423737544,1780351844000,-500.0,0.00014999,2]
[423737547,1780351844000,-500.0,0.00014999,2]
[423737552,1780351844000,-500.0,0.00014999,2]
[423737545,1780351844000,-500.0,0.00014999,2]
[423737546,1780351844000,-500.0,0.00014999,2]
[423737542,1780351844000,-645.91,0.00014999,2]
[423737540,1780351844000,-645.91,0.00014999,2]
[423737541,1780351844000,-645.91,0.00014999,2]
[423737548,1780351844000,-500.0,0.00014999,2]
[423737543,1780351844000,-646.02191452,0.00014999,2]
[423737555,1780351844000,-500.0,0.00014999,2]
[423737565,1780351844000,-300.0,0.00014999,2]
[423737554,1780351844000,-500.0,0.00014999,2]
[423737558,1780351844000,-500.0,0.00014999,2]
[423737556,1780351844000,-500.0,0.00014999,2]
[423737563,1780351844000,-872.74,0.00014999,2]
[423737566,1780351844000,-451460.64424054,0.00015,2]
[423737559,1780351844000,-275.90819985,0.00014999,2]
[423737564,1780351844000,-872.74,0.00014999,2]
[423737562,1780351844000,-872.74,0.00014999,2]
[423737557,1780351844000,-500.0,0.00014999,2]
[423737560,1780351844000,-872.74,0.00014999,2]
[423737561,1780351844000,-872.74,0.00014999,2]
[423737567,1780351844000,-562.50116436,0.00015,2]
[423737553,1780351844000,-337.81030719,0.00014999,2]
[423737572,1780351846000,-4304.8765467,0.0001425,2]
[423737573,1780351846000,-8176.91675458,0.0001425,2]
[423737571,1780351846000,-680.76135183,0.00013914,2]
[423737580,1780351847000,-435.96746,0.00013509,2]
[423737582,1780351847000,-464431.8779445,0.0001425,2]
[423737584,1780351847000,-12900.00015113,0.0001425,2]
[423737583,1780351847000,-300.75693,0.0001425,2]
[423737581,1780351847000,-4963.92828605,0.00013509,2]
[423737586,1780351909000,500.0,0.0003013,120]
[423737587,1780352233000,553.0,0.0003013,120]
[423737588,1780352428000,-500.0,0.00011882,2]
[423737589,1780352444000,-152.0,0.00011982,7]
[423737590,1780352481000,-150.0,0.00012008,2]
[423737591,1780352498000,-150.0,0.00011782,2]
[423737592,1780352536000,-62.3053,0.00011782,2]
[423737594,1780352551000,297.7056082,0.0003013,120]
[423737593,1780352551000,-150.0,0.00012127,2]
[423737595,1780352588000,-1069.18,0.00012718,2]
[423737597,1780352606000,-756.3703469,0.00012718,2]
[423737596,1780352606000,-473.72146847,0.00012632,2]
[423737598,1780352621000,-473.72146847,0.00012718,2]
[423737599,1780352674000,-150.29,0.00012095,2]
[423737600,1780352675000,187.18,0.00028767,120]
[423737601,1780352719000,-1000.0,0.00012721,2]
[423737602,1780352764000,-1230.09181537,0.00012721,2]
[423737603,1780352780000,-215.65015035,0.00012721,2]
[423737609,1780352833000,-150.29,0.00012732,2]
[423737611,1780352941000,2000.0,0.00030134,120]
[423737619,1780353032000,-236.48,0.00012597,2]
[423737624,1780353032000,-99107.07397822,0.00012732,2]
[423737622,1780353032000,-150.0,0.00012731,2]
[423737620,1780353032000,-1200.0,0.00012731,2]
[423737621,1780353032000,-300.0,0.00012731,2]
[423737623,1780353032000,-500.0,0.00012731,2]
[423737625,1780353032000,-290.05642929,0.00012732,2]
[423737645,1780353038000,-598.36428675,0.00012732,2]
[423737644,1780353038000,-2060.86714793,0.00012732,2]
[423737643,1780353038000,-30000.0,0.00012732,2]
[423737649,1780353040000,-365.54270048,0.00012732,2]
[423737650,1780353041000,-572.00388343,0.00012732,2]
[423737659,1780353043000,-6619.20434943,0.00012732,2]
[423737660,1780353043000,-278641.26620338,0.00012732,2]
[423737678,1780353077000,-5264.44433029,0.00012732,2]
[423737679,1780353093000,-5264.44433029,0.00012732,2]
[423737682,1780353124000,-1240.49,0.00012732,2]
[423737683,1780353139000,-500.0,0.00012632,2]
[423737685,1780353139000,-440.49,0.00012732,2]
[423737684,1780353139000,-300.0,0.00012731,2]
[423737686,1780353169000,-5264.44433029,0.00012632,2]
[423737687,1780353171000,-175.51264232,0.00012632,2]
[423737688,1780353171000,-5088.93168797,0.00012632,2]
[423737689,1780353206000,-765.54,0.00012632,2]
[423737690,1780353209000,-150.0,0.00012631,2]
[423737691,1780353209000,-615.54,0.00012632,2]
[423737694,1780353240000,-500.0,0.00012631,2]
[423737696,1780353241000,-156.21168621,0.00012631,2]
[423737697,1780353241000,-47.1752743,0.00012632,2]
[423737695,1780353241000,-296.61303949,0.00012631,2]
[423737698,1780353290000,-2293.99,0.00012632,2]
[423737699,1780353291000,-2293.99,0.00012632,2]
[423737700,1780353306000,-5264.44433029,0.00012632,2]
[423737701,1780353358000,-1407.69,0.00012574,2]
[423737709,1780353411000,-473.72146847,0.00012531,2]
[423737711,1780353465000,-1000.0,0.00012574,2]
[423737712,1780353740000,-150.29,0.00011767,2]
[423737713,1780353755000,-159.3,0.00012473,2]
[423737715,1780353779000,500.0,0.00030136,120]
[423737716,1780353793000,-1200.0,0.00012531,2]
[423737717,1780353811000,-150.0,0.00012531,2]
[423737718,1780353847000,-300.0,0.00012531,2]
[423737720,1780353862000,-2000.0,0.00012532,2]
[423737721,1780353900000,-5264.44433029,0.00012532,2]
[423737722,1780353916000,-5264.44433029,0.00012532,2]
[423737723,1780353955000,-300.0,0.00012531,2]
[423737724,1780353970000,-5264.44433029,0.00012532,2]
[423737726,1780354008000,-5264.44433029,0.00012532,2]
[423737727,1780354046000,1194.09,0.00030129,120]
[423737728,1780354061000,-1194.09,0.00012375,2]
[423737730,1780354114000,-593.47,0.00011227,2]
[423737731,1780354140000,2000.0,0.00030135,120]
[423737732,1780354167000,-200.0,0.00012028,2]
[423737733,1780354168000,-237.32005932,0.00012532,2]
[423737734,1780354220000,-159.3,0.00012449,2]
[423737739,1780354232000,-2387.58491439,0.00012532,2]
[423737742,1780354232000,-799.70751042,0.00012532,2]
[423737741,1780354232000,-9187.41925496,0.00012532,2]
[423737738,1780354232000,-1200.0,0.00012531,2]
[423737740,1780354232000,-370.50525017,0.00012532,2]
[423737736,1780354232000,-1568.84,0.00012238,2]
[423737737,1780354232000,-566.46024627,0.000124,2]
[423737735,1780354232000,-431.16,0.00012238,2]
[423737763,1780354241000,-396.446606,0.00012532,2]
[423737764,1780354241000,-8964.02441813,0.00012532,2]
[423737796,1780354244000,-22639.43284417,0.00012532,2]
[423737795,1780354244000,-1.81222128,0.00012532,2]
[423737799,1780354244000,-150.0,0.00012631,2]
[423737797,1780354244000,-4998.88963924,0.00012552,2]
[423737803,1780354244000,-335.3,0.00012724,2]
[423737798,1780354244000,-215.65015035,0.00012599,2]
[423737802,1780354244000,-89790.82785301,0.00012724,2]
[423737800,1780354244000,-150.0,0.00012657,2]
[423737801,1780354244000,-4399.4722954,0.00012719,2]
[423737815,1780354246000,-3078.68797477,0.00012724,2]
[423737814,1780354246000,-270.39079621,0.00012724,2]
[423737818,1780354344000,9800.859,0.00030136,120]
[423737819,1780354555000,185.17,0.0003,120]
[423737821,1780354608000,-500.0,0.00011928,2]
[423737822,1780354624000,-150.0,0.00012048,2]
[423737823,1780354662000,-709.21,0.00012415,2]
[423737824,1780354677000,-212.3053,0.00012415,2]
[423737825,1780354677000,-1278.6247,0.00012515,2]
[423737826,1780354715000,-152.57,0.0001175,2]
[423737827,1780354732000,-152.57,0.00011874,2]
[423737828,1780354769000,-152.57,0.00011998,2]
[423737829,1780354822000,-152.57,0.00012122,2]
[423737830,1780354875000,-152.57,0.00012245,2]
[423737831,1780354878000,152.0,0.0003,120]
[423737832,1780354903000,199.01,0.00030082,120]
[423737835,1780354928000,-199.01,0.00012329,2]
[423737839,1780354982000,-152.57,0.00012369,2]
[423737840,1780355035000,-1000.0,0.00011715,2]
[423737841,1780355035000,152.0,0.0003,120]
[423737842,1780355089000,-2000.0,0.00011773,2]
[423737843,1780355167000,171.26,9.436e-05,2]
[423737846,1780355340000,2000.0,0.00030135,120]
[423737848,1780355393000,-415.04,0.00011227,2]
[423737849,1780355409000,-200.0,0.00011425,2]
[423737850,1780355422000,500.0,0.00030137,120]